fUST/lending_fUST_20240416
["ID","MTS","AMOUNT","RATE_DAILY","PERIOD"]
[322699952,1713223841865,-224.0,0.00030136,2]
[322699953,1713223841875,-662.4,0.00030136,2]
[322699954,1713223841885,-941.81,0.00030136,2]
[322699955,1713223841895,-500.0,0.00030136,2]
[322699956,1713223841904,-612.84,0.00030136,2]
[322699957,1713223841913,-500.0,0.00030136,2]
[322699958,1713223841922,-3987.56,0.00030136,2]
[322699959,1713223841931,-3987.56,0.00030136,2]
[322699960,1713223841941,-500.0,0.00030136,2]
[322699961,1713223841950,-3987.56,0.00030136,2]
[322699962,1713223841959,-3987.56,0.00030136,2]
[322699963,1713223841968,-500.0,0.00030136,2]
[322699964,1713223841977,-500.0,0.00030136,2]
[322699965,1713223841987,-500.0,0.00030136,2]
[322699966,1713223841996,-1958.75,0.00030136,2]
[322699967,1713223842005,-726.2,0.00030136,2]
[322699968,1713223842014,-500.32,0.00030136,2]
[322699969,1713223842022,-907.11,0.00030136,2]
[322699970,1713223842031,-514.3,0.00030136,2]
[322699971,1713223842040,-4513.42,0.00030136,2]
[322699972,1713223842049,-500.0,0.00030136,2]
[322699973,1713223842059,-639.91,0.00030136,2]
[322699974,1713223842068,-500.0,0.00030136,2]
[322699975,1713223842077,-500.0,0.00030136,2]
[322699976,1713223842086,-500.0,0.00030136,2]
[322699977,1713223842095,-2109.52,0.00030136,2]
[322699978,1713223842105,-500.0,0.00030136,2]
[322699979,1713223842114,-500.0,0.00030136,2]
[322699980,1713223842122,-500.0,0.00030136,2]
[322699981,1713223842132,-500.0,0.00030136,2]
[322699982,1713223842143,-500.0,0.00030136,2]
[322699983,1713223842152,-500.0,0.00030136,2]
[322699984,1713223842161,-500.0,0.00030136,2]
[322699985,1713223842170,-500.0,0.00030136,2]
[322699986,1713223842179,-921.02,0.00030136,2]
[322699987,1713223842188,-500.0,0.00030136,2]
[322699988,1713223842197,-500.0,0.00030136,2]
[322699989,1713223842206,-659.07,0.00030136,2]
[322699990,1713223842216,-1723.19,0.00030136,2]
[322699991,1713223842225,-363.50672756,0.00030408,2]
[322699992,1713223842234,-398.9591628,0.00030408,2]
[322699993,1713223842243,-381.07842901,0.00030408,2]
[322699994,1713223842253,-500.0,0.00030408,2]
[322699995,1713223842262,-326.61918396,0.00030408,2]
[322699996,1713223842271,-500.0,0.00030408,2]
[322699997,1713223842281,-386.8571668,0.00030408,2]
[322699998,1713223842290,-500.0,0.00030408,2]
[322699999,1713223842299,-500.0,0.00030409,7]
[322700000,1713223842308,-3987.56,0.00030409,7]
[322700001,1713223842318,-500.0,0.0003041,7]
[322700002,1713223842328,-500.0,0.0003041,7]
[322700003,1713223842337,-500.0,0.0003041,7]
[322700004,1713223842346,-500.0,0.0003041,7]
[322700005,1713223842355,-620.31014858,0.0003041,7]
[322700006,1713223842367,-500.0,0.0003041,7]
[322700007,1713223842380,-602.2,0.0003041,7]
[322700008,1713223842392,-500.0,0.0003041,7]
[322700009,1713223842402,-500.0,0.0003041,7]
[322700010,1713223842412,-500.0,0.0003041,7]
[322700011,1713223842421,-509.48,0.0003041,7]
[322700012,1713223842430,-500.0,0.0003041,7]
[322700013,1713223842440,-500.0,0.0003041,7]
[322700014,1713223842450,-757.71,0.0003041,7]
[322700015,1713223842459,-500.0,0.0003041,7]
[322700016,1713223842468,-500.0,0.0003041,7]
[322700017,1713223842478,-500.0,0.0003041,7]
[322700018,1713223842487,-500.0,0.0003041,7]
[322700019,1713223842496,-500.0,0.0003041,7]
[322700020,1713223842505,-500.0,0.0003041,7]
[322700021,1713223842515,-500.0,0.0003041,7]
[322700022,1713223842524,-500.0,0.0003041,7]
[322700023,1713223842534,-500.0,0.0003041,7]
[322700024,1713223842543,-500.0,0.0003041,7]
[322700025,1713223842553,-500.0,0.0003041,7]
[322700026,1713223842562,-500.0,0.0003041,7]
[322700027,1713223842571,-500.0,0.0003041,7]
[322700028,1713223842580,-593.99,0.0003041,7]
[322700029,1713223842589,-689.1,0.0003041,7]
[322700030,1713223842599,-500.0,0.0003041,7]
[322700031,1713223842608,-500.0,0.0003041,7]
[322700032,1713223842620,-500.0,0.0003041,7]
[322700033,1713223842629,-506.89113429,0.0003041,7]
[322700034,1713223842640,-500.0,0.0003041,7]
[322700035,1713223842649,-543.22,0.0003041,7]
[322700036,1713223842659,-500.0,0.0003041,7]
[322700037,1713223842668,-500.0,0.0003041,7]
[322700038,1713223842677,-500.0,0.0003041,7]
[322700039,1713223842686,-500.0,0.0003041,7]
[322700040,1713223842695,-604.55685063,0.0003041,7]
[322700041,1713223842704,-500.0,0.0003041,7]
[322700042,1713223842713,-155.9323767,0.0003041,7]
[322700043,1713223842723,-975.64,0.0003041,7]
[322700044,1713223842732,-6563.61,0.0003041,7]
[322700045,1713223842741,-500.0,0.0003041,7]
[322700046,1713223842750,-500.0,0.0003041,7]
[322700047,1713223842759,-500.0,0.0003041,7]
[322700048,1713223842768,-500.0,0.0003041,7]
[322700049,1713223842777,-329.10033173,0.0003041,7]
[322700050,1713223842787,-925.54,0.0003041,7]
[322700051,1713223842797,-500.0,0.0003041,7]
[322700052,1713223842806,-500.0,0.0003041,7]
[322700053,1713223842815,-500.0,0.0003041,7]
[322700054,1713223842824,-500.0,0.0003041,7]
[322700055,1713223842833,-500.0,0.0003041,7]
[322700056,1713223842842,-500.0,0.0003041,7]
[322700057,1713223842852,-500.0,0.0003041,7]
[322700058,1713223842861,-500.0,0.0003041,7]
[322700060,1713223842870,-500.0,0.0003041,7]
[322700062,1713223842879,-994.99,0.0003041,7]
[322700064,1713223842890,-500.0,0.0003041,7]
[322700066,1713223842900,-662.4,0.0003041,7]
[322700068,1713223842909,-941.81,0.0003041,7]
[322700070,1713223842918,-500.0,0.0003041,7]
[322700072,1713223842927,-612.84,0.0003041,7]
[322700073,1713223842936,-500.0,0.0003041,7]
[322700074,1713223842946,-500.0,0.0003041,7]
[322700075,1713223842954,-500.0,0.0003041,7]
[322700076,1713223842963,-500.0,0.0003041,7]
[322700079,1713223842973,-500.0,0.0003041,7]
[322700081,1713223842982,-1958.75,0.0003041,7]
[322700084,1713223842993,-726.2,0.0003041,7]
[322700086,1713223843014,-500.32,0.0003041,7]
[322700088,1713223843035,-907.11,0.0003041,7]
[322700089,1713223843057,-514.3,0.0003041,7]
[322700091,1713223843078,-4513.42,0.0003041,7]
[322700093,1713223843097,-500.0,0.0003041,7]
[322700095,1713223843118,-639.91,0.0003041,7]
[322700097,1713223843137,-500.0,0.0003041,7]
[322700098,1713223843158,-500.0,0.0003041,7]
[322700100,1713223843177,-500.0,0.0003041,7]
[322700101,1713223843186,-2109.52,0.0003041,7]
[322700102,1713223843195,-500.0,0.0003041,7]
[322700103,1713223843204,-500.0,0.0003041,7]
[322700104,1713223843213,-500.0,0.0003041,7]
[322700105,1713223843222,-500.0,0.0003041,7]
[322700106,1713223843231,-500.0,0.0003041,7]
[322700107,1713223843239,-500.0,0.0003041,7]
[322700108,1713223843248,-500.0,0.0003041,7]
[322700109,1713223843257,-500.0,0.0003041,7]
[322700110,1713223843266,-921.02,0.0003041,7]
[322700111,1713223843275,-500.0,0.0003041,7]
[322700112,1713223843284,-500.0,0.0003041,7]
[322700113,1713223843292,-659.07,0.0003041,7]
[322700114,1713223843301,-166.666666,0.00030603,2]
[322700115,1713223843310,-823.0,0.00030664,2]
[322700116,1713223843319,-500.0,0.00030683,7]
[322700117,1713223843328,-3987.56,0.00030683,7]
[322700118,1713223843337,-500.0,0.00030684,7]
[322700119,1713223843346,-500.0,0.00030684,7]
[322700120,1713223843356,-500.0,0.00030684,7]
[322700121,1713223843367,-500.0,0.00030684,7]
[322700122,1713223843378,-500.0,0.00030684,7]
[322700123,1713223843389,-602.2,0.00030684,7]
[322700124,1713223843398,-500.0,0.00030684,7]
[322700125,1713223843407,-500.0,0.00030684,7]
[322700126,1713223843417,-500.0,0.00030684,7]
[322700127,1713223843426,-509.48,0.00030684,7]
[322700128,1713223843435,-500.0,0.00030684,7]
[322700129,1713223843444,-500.0,0.00030684,7]
[322700130,1713223843454,-757.71,0.00030684,7]
[322700131,1713223843463,-500.0,0.00030684,7]
[322700132,1713223843472,-500.0,0.00030684,7]
[322700133,1713223843482,-500.0,0.00030684,7]
[322700134,1713223843491,-500.0,0.00030684,7]
[322700135,1713223843499,-500.0,0.00030684,7]
[322700136,1713223843508,-500.0,0.00030684,7]
[322700137,1713223843518,-500.0,0.00030684,7]
[322700138,1713223843526,-500.0,0.00030684,7]
[322700139,1713223843535,-500.0,0.00030684,7]
[322700140,1713223843544,-500.0,0.00030684,7]
[322700141,1713223843553,-500.0,0.00030684,7]
[322700142,1713223843562,-500.0,0.00030684,7]
[322700143,1713223843571,-500.0,0.00030684,7]
[322700144,1713223843581,-593.99,0.00030684,7]
[322700145,1713223843591,-689.1,0.00030684,7]
[322700147,1713223843710,-500.0,0.00030684,7]
[322700148,1713223843720,-500.0,0.00030684,7]
[322700149,1713223843729,-543.22,0.00030684,7]
[322700150,1713223843739,-500.0,0.00030684,7]
[322700151,1713223843747,-500.0,0.00030684,7]
[322700152,1713223843757,-500.0,0.00030684,7]
[322700153,1713223843766,-500.0,0.00030684,7]
[322700154,1713223843774,-289.04658859,0.00030684,7]
[322700155,1713223843784,-975.64,0.00030684,7]
[322700156,1713223843794,-6563.61,0.00030684,7]
[322700157,1713223843802,-500.0,0.00030684,7]
[322700158,1713223843812,-500.0,0.00030684,7]
[322700159,1713223843822,-500.0,0.00030684,7]
[322700160,1713223843831,-500.0,0.00030684,7]
[322700161,1713223843841,-925.54,0.00030684,7]
[322700162,1713223843850,-500.0,0.00030684,7]
[322700163,1713223843860,-500.0,0.00030684,7]
[322700164,1713223843869,-500.0,0.00030684,7]
[322700165,1713223843879,-500.0,0.00030684,7]
[322700166,1713223843889,-500.0,0.00030684,7]
[322700167,1713223843897,-500.0,0.00030684,7]
[322700168,1713223843907,-500.0,0.00030684,7]
[322700169,1713223843916,-500.0,0.00030684,7]
[322700170,1713223843926,-500.0,0.00030684,7]
[322700171,1713223843935,-994.99,0.00030684,7]
[322700172,1713223843944,-500.0,0.00030684,7]
[322700173,1713223843953,-662.4,0.00030684,7]
[322700174,1713223843962,-941.81,0.00030684,7]
[322700175,1713223843971,-500.0,0.00030684,7]
[322700176,1713223843980,-612.84,0.00030684,7]
[322700177,1713223843989,-500.0,0.00030684,7]
[322700178,1713223843998,-500.0,0.00030684,7]
[322700179,1713223844007,-500.0,0.00030684,7]
[322700180,1713223844016,-500.0,0.00030684,7]
[322700181,1713223844025,-500.0,0.00030684,7]
[322700182,1713223844034,-1958.75,0.00030684,7]
[322700183,1713223844043,-726.2,0.00030684,7]
[322700184,1713223844052,-500.32,0.00030684,7]
[322700185,1713223844061,-907.11,0.00030684,7]
[322700186,1713223844070,-514.3,0.00030684,7]
[322700187,1713223844079,-4513.42,0.00030684,7]
[322700188,1713223844088,-500.0,0.00030684,7]
[322700189,1713223844097,-639.91,0.00030684,7]
[322700190,1713223844105,-500.0,0.00030684,7]
[322700191,1713223844114,-500.0,0.00030684,7]
[322700192,1713223844124,-2109.52,0.00030684,7]
[322700193,1713223844137,-500.0,0.00030684,7]
[322700195,1713223844158,-500.0,0.00030684,7]
[322700197,1713223844179,-500.0,0.00030684,7]
[322700199,1713223844200,-500.0,0.00030684,7]
[322700200,1713223844209,-500.0,0.00030684,7]
[322700201,1713223844218,-500.0,0.00030684,7]
[322700203,1713223844227,-500.0,0.00030684,7]
[322700205,1713223844236,-500.0,0.00030684,7]
[322700206,1713223844245,-921.02,0.00030684,7]
[322700208,1713223844254,-500.0,0.00030684,7]
[322700209,1713223844263,-500.0,0.00030684,7]
[322700210,1713223844273,-235.75906111,0.00030945,2]
[322700211,1713223844282,-500.0,0.00030957,7]
[322700212,1713223844290,-3987.56,0.00030957,7]
[322700213,1713223844299,-3987.56,0.00030957,7]
[322700214,1713223844309,-55382.14774074,0.00030958,5]
[322700215,1713223844318,-500.0,0.00030958,7]
[322700216,1713223844326,-500.0,0.00030958,7]
[322700217,1713223844335,-500.0,0.00030958,7]
[322700219,1713223844344,-500.0,0.00030958,7]
[322700220,1713223844353,-500.0,0.00030958,7]
[322700221,1713223844362,-602.2,0.00030958,7]
[322700222,1713223844375,-500.0,0.00030958,7]
[322700223,1713223844385,-500.0,0.00030958,7]
[322700224,1713223844394,-615.76031145,0.00030958,7]
[322700226,1713223844404,-509.48,0.00030958,7]
[322700227,1713223844413,-500.0,0.00030958,7]
[322700228,1713223844422,-500.0,0.00030958,7]
[322700229,1713223844431,-757.71,0.00030958,7]
[322700230,1713223844440,-500.0,0.00030958,7]
[322700231,1713223844450,-500.0,0.00030958,7]
[322700232,1713223844460,-500.0,0.00030958,7]
[322700233,1713223844469,-247.74767813,0.00030958,7]
[322700234,1713223844478,-500.0,0.00030958,7]
[322700235,1713223844486,-500.0,0.00030958,7]
[322700236,1713223844495,-500.0,0.00030958,7]
[322700237,1713223844504,-500.0,0.00030958,7]
[322700238,1713223844513,-500.0,0.00030958,7]
[322700239,1713223844522,-500.0,0.00030958,7]
[322700240,1713223844531,-593.99,0.00030958,7]
[322700241,1713223844539,-689.1,0.00030958,7]
[322700242,1713223844548,-500.0,0.00030958,7]
[322700243,1713223844557,-188.25522296,0.00030958,7]
[322700244,1713223844566,-543.22,0.00030958,7]
[322700245,1713223844574,-500.0,0.00030958,7]
[322700246,1713223844583,-500.0,0.00030958,7]
[322700247,1713223844592,-500.0,0.00030958,7]
[322700248,1713223844601,-500.0,0.00030958,7]
[322700249,1713223844609,-975.64,0.00030958,7]
[322700250,1713223844618,-6563.61,0.00030958,7]
[322700251,1713223844626,-500.0,0.00030958,7]
[322700252,1713223844636,-500.0,0.00030958,7]
[322700253,1713223844645,-500.0,0.00030958,7]
[322700254,1713223844654,-500.0,0.00030958,7]
[322700255,1713223844663,-925.54,0.00030958,7]
[322700256,1713223844673,-500.0,0.00030958,7]
[322700257,1713223844681,-500.0,0.00030958,7]
[322700258,1713223844691,-500.0,0.00030958,7]
[322700259,1713223844700,-500.0,0.00030958,7]
[322700260,1713223844709,-500.0,0.00030958,7]
[322700261,1713223844718,-500.0,0.00030958,7]
[322700262,1713223844728,-500.0,0.00030958,7]
[322700263,1713223844737,-436.88042258,0.00030958,7]
[322700264,1713223844746,-500.0,0.00030958,7]
[322700265,1713223844755,-994.99,0.00030958,7]
[322700266,1713223844766,-500.0,0.00030958,7]
[322700267,1713223844775,-662.4,0.00030958,7]
[322700268,1713223844784,-941.81,0.00030958,7]
[322700269,1713223844793,-500.0,0.00030958,7]
[322700270,1713223844802,-612.84,0.00030958,7]
[322700271,1713223844811,-500.0,0.00030958,7]
[322700272,1713223844821,-500.0,0.00030958,7]
[322700273,1713223844830,-500.0,0.00030958,7]
[322700274,1713223844840,-500.0,0.00030958,7]
[322700275,1713223844849,-500.0,0.00030958,7]
[322700276,1713223844858,-1958.75,0.00030958,7]
[322700277,1713223844867,-726.2,0.00030958,7]
[322700278,1713223844877,-500.32,0.00030958,7]
[322700279,1713223844886,-907.11,0.00030958,7]
[322700280,1713223844895,-514.3,0.00030958,7]
[322700281,1713223844904,-4513.42,0.00030958,7]
[322700282,1713223844913,-500.0,0.00030958,7]
[322700283,1713223844922,-639.91,0.00030958,7]
[322700284,1713223844932,-500.0,0.00030958,7]
[322700285,1713223844941,-500.0,0.00030958,7]
[322700286,1713223844950,-2109.52,0.00030958,7]
[322700287,1713223844959,-500.0,0.00030958,7]
[322700288,1713223844969,-500.0,0.00030958,7]
[322700289,1713223844978,-500.0,0.00030958,7]
[322700290,1713223844987,-500.0,0.00030958,7]
[322700291,1713223844996,-500.0,0.00030958,7]
[322700292,1713223845005,-500.0,0.00030958,7]
[322700293,1713223845015,-500.0,0.00030958,7]
[322700294,1713223845024,-500.0,0.00030958,7]
[322700295,1713223845034,-921.02,0.00030958,7]
[322700296,1713223845043,-500.0,0.00030958,7]
[322700297,1713223845052,-500.0,0.00030958,7]
[322700298,1713223845062,-10625.72892433,0.00031,5]
[322700299,1713223845071,-500.0,0.0003113,7]
[322700300,1713223845080,-11513.5009569,0.00031132,2]
[322700301,1713223845089,-500.0,0.00031231,7]
[322700302,1713223845098,-3987.56,0.00031231,7]
[322700303,1713223845107,-500.0,0.00031232,7]
[322700304,1713223845116,-527.5,0.00031232,7]
[322700305,1713223845126,-500.0,0.00031232,7]
[322700306,1713223845135,-500.0,0.00031232,7]
[322700307,1713223845144,-500.0,0.00031232,7]
[322700308,1713223845153,-602.2,0.00031232,7]
[322700309,1713223845162,-500.0,0.00031232,7]
[322700310,1713223845171,-500.0,0.00031232,7]
[322700311,1713223845180,-509.48,0.00031232,7]
[322700312,1713223845189,-500.0,0.00031232,7]
[322700313,1713223845198,-500.0,0.00031232,7]
[322700314,1713223845207,-757.71,0.00031232,7]
[322700315,1713223845216,-500.0,0.00031232,7]
[322700316,1713223845225,-500.0,0.00031232,7]
[322700317,1713223845234,-500.0,0.00031232,7]
[322700318,1713223845244,-500.0,0.00031232,7]
[322700319,1713223845252,-173.64923297,0.00031232,7]
[322700320,1713223845261,-500.0,0.00031232,7]
[322700321,1713223845270,-500.0,0.00031232,7]
[322700322,1713223845279,-500.0,0.00031232,7]
[322700323,1713223845288,-500.0,0.00031232,7]
[322700324,1713223845297,-593.99,0.00031232,7]
[322700325,1713223845306,-689.1,0.00031232,7]
[322700326,1713223845316,-500.0,0.00031232,7]
[322700327,1713223845326,-543.22,0.00031232,7]
[322700328,1713223845334,-500.0,0.00031232,7]
[322700329,1713223845344,-500.0,0.00031232,7]
[322700330,1713223845353,-500.0,0.00031232,7]
[322700331,1713223845363,-247.03963294,0.00031232,7]
[322700332,1713223845373,-975.64,0.00031232,7]
[322700333,1713223845382,-6563.61,0.00031232,7]
[322700334,1713223845391,-500.0,0.00031232,7]
[322700335,1713223845400,-500.0,0.00031232,7]
[322700336,1713223845410,-500.0,0.00031232,7]
[322700337,1713223845418,-585.90361652,0.00031232,7]
[322700338,1713223845427,-925.54,0.00031232,7]
[322700339,1713223845437,-500.0,0.00031232,7]
[322700340,1713223845446,-500.0,0.00031232,7]
[322700341,1713223845456,-500.0,0.00031232,7]
[322700342,1713223845465,-500.0,0.00031232,7]
[322700343,1713223845474,-500.0,0.00031232,7]
[322700344,1713223845482,-500.0,0.00031232,7]
[322700345,1713223845491,-500.0,0.00031232,7]
[322700346,1713223845500,-500.0,0.00031232,7]
[322700347,1713223845509,-994.99,0.00031232,7]
[322700348,1713223845517,-500.0,0.00031232,7]
[322700349,1713223845527,-662.4,0.00031232,7]
[322700350,1713223845536,-941.81,0.00031232,7]
[322700351,1713223845545,-500.0,0.00031232,7]
[322700352,1713223845554,-612.84,0.00031232,7]
[322700353,1713223845564,-500.0,0.00031232,7]
[322700354,1713223845573,-500.0,0.00031232,7]
[322700355,1713223845582,-500.0,0.00031232,7]
[322700356,1713223845591,-500.0,0.00031232,7]
[322700357,1713223845600,-500.0,0.00031232,7]
[322700358,1713223845610,-1958.75,0.00031232,7]
[322700359,1713223845619,-726.2,0.00031232,7]
[322700360,1713223845628,-500.32,0.00031232,7]
[322700361,1713223845638,-907.11,0.00031232,7]
[322700362,1713223845647,-514.3,0.00031232,7]
[322700363,1713223845656,-4513.42,0.00031232,7]
[322700364,1713223845666,-500.0,0.00031232,7]
[322700365,1713223845675,-639.91,0.00031232,7]
[322700366,1713223845684,-500.0,0.00031232,7]
[322700367,1713223845694,-500.0,0.00031232,7]
[322700368,1713223845704,-2109.52,0.00031232,7]
[322700369,1713223845713,-500.0,0.00031232,7]
[322700370,1713223845722,-500.0,0.00031232,7]
[322700371,1713223845731,-500.0,0.00031232,7]
[322700372,1713223845740,-500.0,0.00031232,7]
[322700373,1713223845750,-500.0,0.00031232,7]
[322700374,1713223845759,-500.0,0.00031232,7]
[322700375,1713223845768,-500.0,0.00031232,7]
[322700376,1713223845777,-500.0,0.00031232,7]
[322700377,1713223845786,-921.02,0.00031232,7]
[322700378,1713223845795,-500.0,0.00031232,7]
[322700379,1713223845804,-500.0,0.00031232,7]
[322700380,1713223845813,-3000.0,0.000315,4]
[322700381,1713223845822,-500.0,0.00031505,7]
[322700382,1713223845831,-3987.56,0.00031505,7]
[322700383,1713223845841,-264.12418975,0.00031506,7]
[322700384,1713223845850,-500.0,0.00031506,7]
[322700385,1713223845860,-500.0,0.00031506,7]
[322700386,1713223845868,-500.0,0.00031506,7]
[322700387,1713223845877,-602.2,0.00031506,7]
[322700388,1713223845888,-500.0,0.00031506,7]
[322700389,1713223845897,-500.0,0.00031506,7]
[322700390,1713223845906,-509.48,0.00031506,7]
[322700392,1713223845915,-500.0,0.00031506,7]
[322700393,1713223845924,-501.29855071,0.00031506,7]
[322700394,1713223845934,-757.71,0.00031506,7]
[322700395,1713223845943,-500.0,0.00031506,7]
[322700396,1713223845951,-500.0,0.00031506,7]
[322700397,1713223845960,-500.0,0.00031506,7]
[322700398,1713223845970,-500.0,0.00031506,7]
[322700399,1713223845978,-500.0,0.00031506,7]
[322700400,1713223845987,-500.0,0.00031506,7]
[322700401,1713223845996,-500.0,0.00031506,7]
[322700402,1713223846005,-500.0,0.00031506,7]
[322700403,1713223846014,-593.99,0.00031506,7]
[322700404,1713223846023,-689.1,0.00031506,7]
[322700405,1713223846032,-629.86596315,0.00031506,7]
[322700406,1713223846041,-500.0,0.00031506,7]
[322700407,1713223846050,-543.22,0.00031506,7]
[322700408,1713223846057,-500.0,0.00031506,7]
[322700409,1713223846066,-500.0,0.00031506,7]
[322700410,1713223846074,-975.64,0.00031506,7]
[322700411,1713223846082,-6563.61,0.00031506,7]
[322700412,1713223846091,-500.0,0.00031506,7]
[322700413,1713223846099,-500.0,0.00031506,7]
[322700414,1713223846109,-500.0,0.00031506,7]
[322700415,1713223846119,-925.54,0.00031506,7]
[322700416,1713223846129,-500.0,0.00031506,7]
[322700417,1713223846142,-500.0,0.00031506,7]
[322700418,1713223846151,-500.0,0.00031506,7]
[322700419,1713223846160,-500.0,0.00031506,7]
[322700420,1713223846169,-500.0,0.00031506,7]
[322700421,1713223846178,-500.0,0.00031506,7]
[322700422,1713223846187,-500.0,0.00031506,7]
[322700423,1713223846196,-500.0,0.00031506,7]
[322700424,1713223846205,-994.99,0.00031506,7]
[322700425,1713223846215,-500.0,0.00031506,7]
[322700426,1713223846225,-662.4,0.00031506,7]
[322700427,1713223846234,-941.81,0.00031506,7]
[322700428,1713223846243,-500.0,0.00031506,7]
[322700429,1713223846252,-612.84,0.00031506,7]
[322700430,1713223846261,-500.0,0.00031506,7]
[322700431,1713223846270,-500.0,0.00031506,7]
[322700432,1713223846279,-500.0,0.00031506,7]
[322700433,1713223846288,-500.0,0.00031506,7]
[322700434,1713223846298,-500.0,0.00031506,7]
[322700435,1713223846307,-1958.75,0.00031506,7]
[322700436,1713223846317,-726.2,0.00031506,7]
[322700439,1713223846419,-500.32,0.00031506,7]
[322700440,1713223846447,-907.11,0.00031506,7]
[322700441,1713223846457,-514.3,0.00031506,7]
[322700442,1713223846466,-4513.42,0.00031506,7]
[322700443,1713223846476,-500.0,0.00031506,7]
[322700444,1713223846485,-639.91,0.00031506,7]
[322700445,1713223846495,-500.0,0.00031506,7]
[322700446,1713223846504,-500.0,0.00031506,7]
[322700447,1713223846514,-2109.52,0.00031506,7]
[322700448,1713223846524,-500.0,0.00031506,7]
[322700449,1713223846534,-500.0,0.00031506,7]
[322700450,1713223846543,-500.0,0.00031506,7]
[322700451,1713223846552,-500.0,0.00031506,7]
[322700452,1713223846561,-329.59855011,0.00031506,7]
[322700459,1713224970148,-6406.19830463,0.00019431,2]
[322700460,1713224970168,-395.00295372,0.00019529,2]
[322700461,1713224970188,-2007.62821039,0.0001953,2]
[322700462,1713224970208,-538.98088948,0.0001953,2]
[322700463,1713224970228,-882.33479028,0.00019531,2]
[322700464,1713224970248,-355.98303897,0.00019531,2]
[322700465,1713224970267,-250.0,0.00019532,2]
[322700466,1713224970287,-216.09314923,0.00020028,2]
[322700467,1713224970306,-395.00295372,0.00020028,2]
[322700468,1713224970326,-300.0,0.00020028,2]
[322700469,1713224970346,-300.0,0.00020028,2]
[322700470,1713224970364,-8000.0,0.00020029,2]
[322700471,1713224970384,-168.593391,0.00020045,2]
[322700472,1713224970404,-1160.93986466,0.00020842,2]
[322700473,1713224970423,-2124.60141988,0.00020942,2]
[322700474,1713224970441,-211.7214804,0.00020942,2]
[322700475,1713224970460,-11830.6940877,0.00021801,2]
[322700476,1713225004932,311.16933144,0.00019701,2]
[322700519,1713225032635,-216.09314923,0.00021799,2]
[322700520,1713225032648,-2007.62821039,0.00021799,2]
[322700521,1713225032659,-205.79653889,0.00021799,2]
[322700522,1713225032670,-300.0,0.00021799,2]
[322700523,1713225032680,-300.0,0.00021799,2]
[322700524,1713225032690,-882.33479028,0.000218,2]
[322700525,1713225032700,-355.98303897,0.000218,2]
[322700526,1713225032713,-371.8844246,0.000218,2]
[322700527,1713225032724,-13069.3059123,0.00021801,2]
[322700528,1713225032735,-235.438181,0.0002193,2]
[322700529,1713225032747,-200.0,0.0002196,2]
[322700530,1713225032757,-156.77861177,0.00023038,2]